[Event "Late-Titled-Tuesday-Blitz-January-16-2024"]
[Site "Chess.com"]
[Date "2024.01.16"]
[Round "8"]
[White "iulik86"]
[Black "RaugintaBulba"]
[Result "0-1"]
[WhiteElo "2594"]
[BlackElo "2465"]
[TimeControl "180+1"]
[EndTime "15:27:39 PST"]
[Termination "RaugintaBulba won by resignation"]

1. d4 {[%clk 0:02:58.2]} 1... Nf6 {[%clk 0:02:58.2]} 2. Nc3 {[%clk 0:02:55.8]}
2... g6 {[%clk 0:02:53.4]} 3. e4 {[%clk 0:02:55]} 3... d6 {[%clk 0:02:54]} 4.
Bg5 {[%clk 0:02:54.5]} 4... Bg7 {[%clk 0:02:51.4]} 5. Qd2 {[%clk 0:02:54.4]}
5... h6 {[%clk 0:02:51.9]} 6. Bh4 {[%clk 0:02:54.2]} 6... c6 {[%clk 0:02:44]} 7.
f4 {[%clk 0:02:51.1]} 7... O-O {[%clk 0:02:39.9]} 8. e5 {[%clk 0:02:46]} 8...
Nd5 {[%clk 0:02:35.4]} 9. Ne4 {[%clk 0:02:40.4]} 9... dxe5 {[%clk 0:02:30.1]}
10. dxe5 {[%clk 0:02:28.8]} 10... Qb6 {[%clk 0:02:12.7]} 11. O-O-O {[%clk
0:02:25.5]} 11... Ne3 {[%clk 0:02:10.4]} 12. Bf2 {[%clk 0:02:17.7]} 12... Nxf1
{[%clk 0:02:06.4]} 13. Rxf1 {[%clk 0:02:15.8]} 13... Qa6 {[%clk 0:01:53.8]} 14.
Qd3 {[%clk 0:01:44.8]} 14... Qxa2 {[%clk 0:01:51.7]} 15. Qa3 {[%clk 0:01:44.8]}
15... Qxa3 {[%clk 0:01:39.4]} 16. bxa3 {[%clk 0:01:45.7]} 16... Bf5 {[%clk
0:01:33.2]} 17. Ng3 {[%clk 0:01:44.2]} 17... Be6 {[%clk 0:01:30.7]} 18. Nf3
{[%clk 0:01:40.8]} 18... Nd7 {[%clk 0:01:31.1]} 19. Rd1 {[%clk 0:01:33.9]} 19...
Nb6 {[%clk 0:01:31.7]} 20. Nd4 {[%clk 0:01:30.2]} 20... Bd5 {[%clk 0:01:28.9]}
21. Rhg1 {[%clk 0:01:30]} 21... Nc4 {[%clk 0:01:27.5]} 22. a4 {[%clk 0:01:28.9]}
22... Rfd8 {[%clk 0:01:25.7]} 23. h4 {[%clk 0:01:26.9]} 23... h5 {[%clk
0:01:15.3]} 24. Nf1 {[%clk 0:01:19.5]} 24... Bh6 {[%clk 0:01:15.6]} 25. g3
{[%clk 0:01:18.1]} 25... Nxe5 {[%clk 0:01:14.7]} 26. Ne3 {[%clk 0:01:15.6]}
26... Nf3 {[%clk 0:01:14.4]} 27. Nxd5 {[%clk 0:01:11.9]} 27... Nxg1 {[%clk
0:01:12.2]} 28. Nxe7+ {[%clk 0:01:08.8]} 28... Kh7 {[%clk 0:00:55.7]} 29. Rxg1
{[%clk 0:00:54.4]} 29... Bf8 {[%clk 0:00:53.6]} 30. Nexc6 {[%clk 0:00:49.9]}
30... bxc6 {[%clk 0:00:54.5]} 31. Nxc6 {[%clk 0:00:50.3]} 31... Ba3+ {[%clk
0:00:51.2]} 32. Kb1 {[%clk 0:00:48.8]} 32... Rdc8 {[%clk 0:00:51.3]} 33. Nxa7
{[%clk 0:00:42.5]} 33... Rc4 {[%clk 0:00:50.8]} 34. a5 {[%clk 0:00:35.1]} 34...
Bc5 {[%clk 0:00:46.3]} 0-1

[Event "Late-Titled-Tuesday-Blitz-January-16-2024"]
[Site "Chess.com"]
[Date "2024.01.16"]
[Round "8"]
[White "StellarChess"]
[Black "EsmeraldasAnderson03"]
[Result "0-1"]
[WhiteElo "2560"]
[BlackElo "2403"]
[TimeControl "180+1"]
[EndTime "15:27:44 PST"]
[Termination "EsmeraldasAnderson03 won by resignation"]

1. d4 {[%clk 0:03:00.9]} 1... d5 {[%clk 0:02:58.6]} 2. e4 {[%clk 0:03:00.7]}
2... dxe4 {[%clk 0:02:58]} 3. f3 {[%clk 0:03:00.8]} 3... Nf6 {[%clk 0:02:58.1]}
4. Nc3 {[%clk 0:03:00.9]} 4... exf3 {[%clk 0:02:57.9]} 5. Nxf3 {[%clk
0:03:01.7]} 5... e6 {[%clk 0:02:58.6]} 6. Bd3 {[%clk 0:03:00.2]} 6... Be7 {[%clk
0:02:58.4]} 7. Bg5 {[%clk 0:02:59.6]} 7... O-O {[%clk 0:02:58.8]} 8. Qd2 {[%clk
0:02:58.4]} 8... c5 {[%clk 0:02:57.6]} 9. dxc5 {[%clk 0:02:58]} 9... Nbd7 {[%clk
0:02:58.1]} 10. O-O-O {[%clk 0:02:54.5]} 10... Nxc5 {[%clk 0:02:58.4]} 11. Qe3
{[%clk 0:02:52.2]} 11... Nxd3+ {[%clk 0:02:57.7]} 12. Rxd3 {[%clk 0:02:52.1]}
12... Qa5 {[%clk 0:02:57.6]} 13. h4 {[%clk 0:02:51.3]} 13... b5 {[%clk
0:02:57.9]} 14. Qe5 {[%clk 0:02:26.4]} 14... Bb7 {[%clk 0:02:44.2]} 15. Qxb5
{[%clk 0:02:15.8]} 15... Qxb5 {[%clk 0:02:43.2]} 16. Nxb5 {[%clk 0:02:16.7]}
16... Ba6 {[%clk 0:02:41.1]} 17. Rb3 {[%clk 0:02:06.7]} 17... Rfc8 {[%clk
0:02:33.4]} 18. Rd1 {[%clk 0:01:59]} 18... h6 {[%clk 0:02:32]} 19. Bd2 {[%clk
0:01:36.7]} 19... Ne4 {[%clk 0:02:25.5]} 20. Be1 {[%clk 0:01:27.3]} 20... Nc5
{[%clk 0:02:25.5]} 21. Rb4 {[%clk 0:01:17.8]} 21... Nd3+ {[%clk 0:02:25.4]} 22.
Rxd3 {[%clk 0:01:18]} 22... Bxb4 {[%clk 0:02:26.1]} 23. Bxb4 {[%clk 0:01:17.8]}
23... Bxb5 {[%clk 0:02:26.7]} 24. Re3 {[%clk 0:01:13.3]} 24... Rc4 {[%clk
0:02:25.4]} 25. a3 {[%clk 0:01:12.3]} 25... a5 {[%clk 0:02:23.7]} 26. Bc3 {[%clk
0:01:11.3]} 26... Rac8 {[%clk 0:02:21.6]} 27. g3 {[%clk 0:01:06.3]} 27... a4
{[%clk 0:02:19.2]} 28. Ne5 {[%clk 0:01:00.1]} 28... R4c7 {[%clk 0:02:17.1]} 29.
Rf3 {[%clk 0:00:57]} 29... f6 {[%clk 0:02:15.5]} 30. Ng4 {[%clk 0:00:55.1]}
30... Be2 {[%clk 0:02:12.9]} 31. Rf4 {[%clk 0:00:55.5]} 31... Bxg4 {[%clk
0:02:00.2]} 32. Rxg4 {[%clk 0:00:55.8]} 32... Rc4 {[%clk 0:02:00.5]} 33. Rxc4
{[%clk 0:00:51.9]} 33... Rxc4 {[%clk 0:02:01.4]} 34. Be1 {[%clk 0:00:46.5]}
34... e5 {[%clk 0:01:56.1]} 35. Kd2 {[%clk 0:00:44.4]} 35... Rd4+ {[%clk
0:01:53.3]} 36. Ke2 {[%clk 0:00:43.1]} 36... Kf7 {[%clk 0:01:50.1]} 37. b3
{[%clk 0:00:41.8]} 37... Ke6 {[%clk 0:01:48.5]} 38. Bc3 {[%clk 0:00:34]} 38...
Re4+ {[%clk 0:01:46.5]} 39. Kd3 {[%clk 0:00:34]} 39... Rg4 {[%clk 0:01:39]} 40.
Be1 {[%clk 0:00:33.5]} 40... g5 {[%clk 0:01:34.1]} 41. b4 {[%clk 0:00:28.4]}
41... Kd5 {[%clk 0:01:28.4]} 42. Bf2 {[%clk 0:00:27]} 42... f5 {[%clk
0:01:25.3]} 43. c3 {[%clk 0:00:24.5]} 43... e4+ {[%clk 0:01:19.5]} 44. Kd2
{[%clk 0:00:20.6]} 44... Kc4 {[%clk 0:01:15.7]} 45. hxg5 {[%clk 0:00:20.5]}
45... hxg5 {[%clk 0:01:15.3]} 46. Be1 {[%clk 0:00:21.2]} 46... f4 {[%clk
0:01:13.9]} 47. gxf4 {[%clk 0:00:21.7]} 47... gxf4 {[%clk 0:01:14.8]} 48. Ke2
{[%clk 0:00:22.4]} 48... Rg2+ {[%clk 0:01:14.6]} 49. Kf1 {[%clk 0:00:22.4]}
49... Ra2 {[%clk 0:01:15]} 0-1

[Event "Late-Titled-Tuesday-Blitz-January-16-2024"]
[Site "Chess.com"]
[Date "2024.01.16"]
[Round "8"]
[White "SandwichOSaumon"]
[Black "yaguigor"]
[Result "0-1"]
[WhiteElo "2516"]
[BlackElo "2635"]
[TimeControl "180+1"]
[EndTime "15:27:48 PST"]
[Termination "yaguigor won by checkmate"]

1. e4 {[%clk 0:03:00.9]} 1... c5 {[%clk 0:02:58.5]} 2. Nf3 {[%clk 0:03:00.4]}
2... Nc6 {[%clk 0:02:57.8]} 3. d4 {[%clk 0:02:59]} 3... cxd4 {[%clk 0:02:57.3]}
4. Nxd4 {[%clk 0:02:59.9]} 4... Nf6 {[%clk 0:02:57.2]} 5. Nc3 {[%clk 0:02:58.7]}
5... e5 {[%clk 0:02:57.5]} 6. Ndb5 {[%clk 0:02:56.4]} 6... d6 {[%clk 0:02:57.3]}
7. Bg5 {[%clk 0:02:55.6]} 7... a6 {[%clk 0:02:56.3]} 8. Na3 {[%clk 0:02:56.2]}
8... b5 {[%clk 0:02:56]} 9. Nd5 {[%clk 0:02:56.5]} 9... Be7 {[%clk 0:02:55.4]}
10. Bxf6 {[%clk 0:02:56.5]} 10... Bxf6 {[%clk 0:02:56.3]} 11. c4 {[%clk
0:02:56.4]} 11... b4 {[%clk 0:02:55.4]} 12. Nc2 {[%clk 0:02:55.7]} 12... O-O
{[%clk 0:02:55.6]} 13. Bd3 {[%clk 0:02:55.9]} 13... a5 {[%clk 0:02:54.5]} 14.
O-O {[%clk 0:02:56.4]} 14... Bg5 {[%clk 0:02:54.1]} 15. b3 {[%clk 0:02:54.5]}
15... Be6 {[%clk 0:02:52.6]} 16. Be2 {[%clk 0:02:49.9]} 16... Nb8 {[%clk
0:02:41.6]} 17. g3 {[%clk 0:02:46.4]} 17... Nd7 {[%clk 0:02:38.7]} 18. f4 {[%clk
0:02:46.3]} 18... exf4 {[%clk 0:02:37.9]} 19. gxf4 {[%clk 0:02:47.2]} 19... Bh6
{[%clk 0:02:37.5]} 20. Nd4 {[%clk 0:02:42.3]} 20... Nc5 {[%clk 0:02:35.4]} 21.
Nc6 {[%clk 0:02:33]} 21... Qh4 {[%clk 0:02:34]} 22. Nde7+ {[%clk 0:02:22.9]}
22... Kh8 {[%clk 0:02:32.7]} 23. f5 {[%clk 0:02:23.4]} 23... Be3+ {[%clk
0:01:59.6]} 24. Kh1 {[%clk 0:02:17.9]} 24... Nxe4 {[%clk 0:01:32.8]} 25. Qd3
{[%clk 0:01:54.8]} 25... Bf4 {[%clk 0:01:17.2]} 26. Rxf4 {[%clk 0:01:40.3]}
26... Qxf4 {[%clk 0:01:16.1]} 27. Qf3 {[%clk 0:01:41]} 27... Qh4 {[%clk
0:01:04.7]} 28. Bd3 {[%clk 0:01:30.7]} 28... Nc5 {[%clk 0:00:57.3]} 29. fxe6
{[%clk 0:01:02.8]} 29... fxe6 {[%clk 0:00:58.2]} 30. Qe3 {[%clk 0:01:02.1]}
30... Rf2 {[%clk 0:00:51.6]} 31. h3 {[%clk 0:01:02.4]} 31... Raf8 {[%clk
0:00:48]} 32. Be2 {[%clk 0:00:57.7]} 32... Ne4 {[%clk 0:00:37.2]} 33. Rg1 {[%clk
0:00:54.6]} 33... Rxe2 {[%clk 0:00:32.4]} 34. Qxe2 {[%clk 0:00:35.4]} 34...
Qxh3+ {[%clk 0:00:31.2]} 35. Qh2 {[%clk 0:00:33.2]} 35... Nf2# {[%clk
0:00:31.1]} 0-1

[Event "Late-Titled-Tuesday-Blitz-January-16-2024"]
[Site "Chess.com"]
[Date "2024.01.16"]
[Round "8"]
[White "szachmistrz2500"]
[Black "masnyszachistaaa"]
[Result "0-1"]
[WhiteElo "2437"]
[BlackElo "2519"]
[TimeControl "180+1"]
[EndTime "15:27:48 PST"]
[Termination "masnyszachistaaa won by checkmate"]

1. d4 {[%clk 0:03:00.9]} 1... Nf6 {[%clk 0:02:56]} 2. Nf3 {[%clk 0:03:00.4]}
2... c5 {[%clk 0:02:52.8]} 3. d5 {[%clk 0:02:59.8]} 3... g6 {[%clk 0:02:42.2]}
4. Nc3 {[%clk 0:02:59.4]} 4... Bg7 {[%clk 0:02:41.1]} 5. e4 {[%clk 0:02:59.6]}
5... d6 {[%clk 0:02:41.8]} 6. h3 {[%clk 0:02:59.8]} 6... O-O {[%clk 0:02:41.9]}
7. Be2 {[%clk 0:02:57.4]} 7... Na6 {[%clk 0:02:38.3]} 8. O-O {[%clk 0:02:56.7]}
8... Nc7 {[%clk 0:02:38.4]} 9. a4 {[%clk 0:02:55.7]} 9... e6 {[%clk 0:02:37.3]}
10. Bg5 {[%clk 0:02:50.7]} 10... exd5 {[%clk 0:02:36.6]} 11. exd5 {[%clk
0:02:49.6]} 11... Re8 {[%clk 0:02:29.5]} 12. Qd2 {[%clk 0:02:44.1]} 12... Bf5
{[%clk 0:02:18.3]} 13. Bd3 {[%clk 0:02:30.3]} 13... Bxd3 {[%clk 0:02:17.3]} 14.
Qxd3 {[%clk 0:02:30.1]} 14... Qd7 {[%clk 0:02:16.7]} 15. Rfe1 {[%clk 0:02:23.4]}
15... Rxe1+ {[%clk 0:01:52.9]} 16. Nxe1 {[%clk 0:02:17.7]} 16... Re8 {[%clk
0:01:53.8]} 17. a5 {[%clk 0:02:10.8]} 17... Na6 {[%clk 0:01:45.2]} 18. Qf3
{[%clk 0:01:41.2]} 18... Qe7 {[%clk 0:01:25.7]} 19. Nd3 {[%clk 0:01:38.9]} 19...
h6 {[%clk 0:01:06.4]} 20. Bh4 {[%clk 0:01:27.9]} 20... g5 {[%clk 0:01:06.2]} 21.
Bg3 {[%clk 0:01:27.8]} 21... Qd8 {[%clk 0:01:04.3]} 22. Nb5 {[%clk 0:01:20.6]}
22... Ne4 {[%clk 0:01:01.9]} 23. Re1 {[%clk 0:01:14.9]} 23... Nxg3 {[%clk
0:00:53]} 24. Rxe8+ {[%clk 0:00:47.2]} 24... Qxe8 {[%clk 0:00:53.9]} 25. Nxd6
{[%clk 0:00:47.1]} 25... Ne2+ {[%clk 0:00:45.6]} 26. Kf1 {[%clk 0:00:46.9]}
26... Qd7 {[%clk 0:00:44.3]} 27. Ne4 {[%clk 0:00:31.2]} 27... Nd4 {[%clk
0:00:41.7]} 28. Nf6+ {[%clk 0:00:31.4]} 28... Bxf6 {[%clk 0:00:39]} 29. Qxf6
{[%clk 0:00:31.6]} 29... Qxd5 {[%clk 0:00:32.8]} 30. Qxh6 {[%clk 0:00:26]} 30...
Ne6 {[%clk 0:00:30.7]} 31. Qf6 {[%clk 0:00:24.7]} 31... c4 {[%clk 0:00:29.4]}
32. Ne5 {[%clk 0:00:24.5]} 32... Qd1# {[%clk 0:00:29]} 0-1

[Event "Late-Titled-Tuesday-Blitz-January-16-2024"]
[Site "Chess.com"]
[Date "2024.01.16"]
[Round "8"]
[White "SchmakAttack"]
[Black "platy3"]
[Result "1/2-1/2"]
[WhiteElo "2746"]
[BlackElo "2882"]
[TimeControl "180+1"]
[EndTime "15:27:50 PST"]
[Termination "Game drawn by repetition"]

1. d4 {[%clk 0:02:59.5]} 1... Nf6 {[%clk 0:02:59.9]} 2. c4 {[%clk 0:02:59]} 2...
e6 {[%clk 0:02:56.9]} 3. Nf3 {[%clk 0:02:58.5]} 3... Bb4+ {[%clk 0:02:54.7]} 4.
Bd2 {[%clk 0:02:57.3]} 4... a5 {[%clk 0:02:54.3]} 5. a3 {[%clk 0:02:53.9]} 5...
Bxd2+ {[%clk 0:02:54]} 6. Qxd2 {[%clk 0:02:35.7]} 6... d5 {[%clk 0:02:53.7]} 7.
e3 {[%clk 0:02:29.1]} 7... O-O {[%clk 0:02:52.9]} 8. Nc3 {[%clk 0:02:25.6]} 8...
b6 {[%clk 0:02:49]} 9. cxd5 {[%clk 0:02:20.9]} 9... exd5 {[%clk 0:02:48.7]} 10.
Bd3 {[%clk 0:02:20.4]} 10... Bb7 {[%clk 0:02:45.6]} 11. Ne5 {[%clk 0:02:10.4]}
11... c5 {[%clk 0:02:43.8]} 12. O-O {[%clk 0:02:06.1]} 12... Nc6 {[%clk
0:02:40.3]} 13. f4 {[%clk 0:02:03.2]} 13... cxd4 {[%clk 0:02:31.6]} 14. Nxc6
{[%clk 0:01:40]} 14... Bxc6 {[%clk 0:02:29.3]} 15. exd4 {[%clk 0:01:40.1]} 15...
Qd6 {[%clk 0:02:24.1]} 16. Rfe1 {[%clk 0:01:33.4]} 16... Rfe8 {[%clk 0:02:24.2]}
17. Re5 {[%clk 0:01:19.9]} 17... Nd7 {[%clk 0:02:23.9]} 18. Re3 {[%clk
0:01:01.5]} 18... Nf8 {[%clk 0:02:17.4]} 19. g3 {[%clk 0:00:53.7]} 19... Ne6
{[%clk 0:02:15.4]} 20. Rae1 {[%clk 0:00:50.1]} 20... h6 {[%clk 0:02:11.2]} 21.
Bb1 {[%clk 0:00:45]} 21... Nf8 {[%clk 0:02:04.3]} 22. Re5 {[%clk 0:00:40]} 22...
f6 {[%clk 0:01:56.8]} 23. Rxe8 {[%clk 0:00:40]} 23... Rxe8 {[%clk 0:01:57.7]}
24. Rxe8 {[%clk 0:00:40.1]} 24... Bxe8 {[%clk 0:01:58.6]} 25. Ba2 {[%clk
0:00:36.1]} 25... Bc6 {[%clk 0:01:57.1]} 26. Qg2 {[%clk 0:00:36.1]} 26... Ne6
{[%clk 0:01:57.2]} 27. Bxd5 {[%clk 0:00:33.2]} 27... Bxd5 {[%clk 0:01:51.7]} 28.
Qxd5 {[%clk 0:00:34.1]} 28... Qxd5 {[%clk 0:01:50]} 29. Nxd5 {[%clk 0:00:35]}
29... b5 {[%clk 0:01:50.9]} 30. Nc3 {[%clk 0:00:32.7]} 30... Nxd4 {[%clk
0:01:49.9]} 31. b4 {[%clk 0:00:32.4]} 31... axb4 {[%clk 0:01:44.1]} 32. axb4
{[%clk 0:00:33.3]} 32... Kf7 {[%clk 0:01:44.3]} 33. Kf2 {[%clk 0:00:33.4]} 33...
Ke6 {[%clk 0:01:41.4]} 34. Ke3 {[%clk 0:00:32.4]} 34... Nc2+ {[%clk 0:01:41.9]}
35. Ke4 {[%clk 0:00:26.8]} 35... f5+ {[%clk 0:01:39.5]} 36. Kf3 {[%clk
0:00:26.8]} 36... Nxb4 {[%clk 0:01:12]} 37. Nxb5 {[%clk 0:00:26.4]} 37... Nc6
{[%clk 0:01:12.8]} 38. Ke3 {[%clk 0:00:24.1]} 38... g6 {[%clk 0:01:07]} 39. Nd4+
{[%clk 0:00:22.3]} 39... Kd5 {[%clk 0:01:06.7]} 40. Nxc6 {[%clk 0:00:22.3]}
40... Kxc6 {[%clk 0:01:07.6]} 41. Kd4 {[%clk 0:00:22.5]} 41... Kd6 {[%clk
0:01:08.4]} 42. Kc4 {[%clk 0:00:20.3]} 42... g5 {[%clk 0:01:07.4]} 43. Kd4
{[%clk 0:00:20.3]} 43... g4 {[%clk 0:01:06.4]} 44. Kc4 {[%clk 0:00:20.2]} 44...
Kc6 {[%clk 0:01:07]} 45. Kd4 {[%clk 0:00:20.4]} 45... Kd6 {[%clk 0:01:07.6]} 46.
Kc4 {[%clk 0:00:20.9]} 46... Kc6 {[%clk 0:01:08.3]} 47. Kd4 {[%clk 0:00:21.3]}
47... Kd6 {[%clk 0:01:09.1]} 1/2-1/2

[Event "Late-Titled-Tuesday-Blitz-January-16-2024"]
[Site "Chess.com"]
[Date "2024.01.16"]
[Round "8"]
[White "kai_nov"]
[Black "Filipets"]
[Result "0-1"]
[WhiteElo "2286"]
[BlackElo "2573"]
[TimeControl "180+1"]
[EndTime "15:27:53 PST"]
[Termination "Filipets won on time"]

1. d4 {[%clk 0:03:00.9]} 1... f5 {[%clk 0:02:59.9]} 2. g3 {[%clk 0:02:59.4]}
2... Nf6 {[%clk 0:03:00.3]} 3. Bg2 {[%clk 0:02:59.7]} 3... g6 {[%clk 0:03:01.2]}
4. c3 {[%clk 0:03:00]} 4... Bg7 {[%clk 0:03:01.9]} 5. Qb3 {[%clk 0:03:00.2]}
5... d5 {[%clk 0:03:01.6]} 6. Nh3 {[%clk 0:02:55.6]} 6... O-O {[%clk 0:03:01.7]}
7. O-O {[%clk 0:02:55.8]} 7... e6 {[%clk 0:02:58.7]} 8. Bf4 {[%clk 0:02:48.9]}
8... Nc6 {[%clk 0:02:46.3]} 9. Nd2 {[%clk 0:02:48.2]} 9... h6 {[%clk 0:02:44.9]}
10. f3 {[%clk 0:02:44.6]} 10... g5 {[%clk 0:02:44.7]} 11. Be5 {[%clk 0:02:37.5]}
11... Nxe5 {[%clk 0:02:41.7]} 12. dxe5 {[%clk 0:02:38.4]} 12... Nd7 {[%clk
0:02:40.8]} 13. f4 {[%clk 0:02:38.4]} 13... Nc5 {[%clk 0:02:29.6]} 14. Qb4
{[%clk 0:02:29.3]} 14... b6 {[%clk 0:02:29.7]} 15. Rad1 {[%clk 0:02:21.4]} 15...
a5 {[%clk 0:02:27.5]} 16. Qd4 {[%clk 0:02:18.3]} 16... Ba6 {[%clk 0:02:27.2]}
17. Rfe1 {[%clk 0:02:15.2]} 17... Rf7 {[%clk 0:02:27.7]} 18. b4 {[%clk 0:02:06]}
18... axb4 {[%clk 0:02:24.4]} 19. cxb4 {[%clk 0:02:06.9]} 19... Nb7 {[%clk
0:02:25]} 20. Nb3 {[%clk 0:01:39.7]} 20... Bf8 {[%clk 0:02:21.4]} 21. e4 {[%clk
0:01:25.3]} 21... fxe4 {[%clk 0:02:15.5]} 22. fxg5 {[%clk 0:01:19.3]} 22... c5
{[%clk 0:02:13.7]} 23. Qd2 {[%clk 0:01:13]} 23... Kh7 {[%clk 0:02:03.6]} 24. Nf4
{[%clk 0:01:02.3]} 24... Qxg5 {[%clk 0:02:01.1]} 25. Nxe6 {[%clk 0:00:47.7]}
25... Qxd2 {[%clk 0:01:50.1]} 26. Rxd2 {[%clk 0:00:48.6]} 26... Bc4 {[%clk
0:01:44]} 27. bxc5 {[%clk 0:00:39.1]} 27... Nxc5 {[%clk 0:01:40.3]} 28. Nxf8+
{[%clk 0:00:32.6]} 28... Rfxf8 {[%clk 0:01:35.9]} 29. Nxc5 {[%clk 0:00:27]}
29... bxc5 {[%clk 0:01:35.7]} 30. Rxe4 {[%clk 0:00:13.5]} 30... dxe4 {[%clk
0:01:25.2]} 31. Bxe4+ {[%clk 0:00:13]} 31... Kg8 {[%clk 0:01:25.7]} 32. Bxa8
{[%clk 0:00:11.8]} 32... Rxa8 {[%clk 0:01:26.6]} 33. Rc2 {[%clk 0:00:10.9]}
33... Bxa2 {[%clk 0:01:26]} 34. Rxc5 {[%clk 0:00:10.7]} 34... Kf7 {[%clk
0:01:26.6]} 35. Kf2 {[%clk 0:00:10.3]} 35... Be6 {[%clk 0:01:23.7]} 36. h4
{[%clk 0:00:07.4]} 36... Kg6 {[%clk 0:01:19.6]} 37. Rc7 {[%clk 0:00:03.3]} 37...
Ra5 {[%clk 0:01:13.7]} 38. Kf3 {[%clk 0:00:02]} 38... Rxe5 {[%clk 0:01:12.9]}
39. g4 {[%clk 0:00:02.3]} 39... Ra5 {[%clk 0:01:11.1]} 40. Rc6 {[%clk
0:00:01.3]} 40... Kf6 {[%clk 0:01:10.4]} 0-1

[Event "Late-Titled-Tuesday-Blitz-January-16-2024"]
[Site "Chess.com"]
[Date "2024.01.16"]
[Round "8"]
[White "Godzillator"]
[Black "protectiago"]
[Result "1-0"]
[WhiteElo "2337"]
[BlackElo "2050"]
[TimeControl "180+1"]
[EndTime "15:27:55 PST"]
[Termination "Godzillator won by resignation"]

1. Nf3 {[%clk 0:03:00.9]} 1... Nf6 {[%clk 0:02:58]} 2. b3 {[%clk 0:03:00.6]}
2... e6 {[%clk 0:02:57.3]} 3. Bb2 {[%clk 0:03:00.9]} 3... d5 {[%clk 0:02:57.1]}
4. e3 {[%clk 0:03:01.2]} 4... c5 {[%clk 0:02:56.7]} 5. Be2 {[%clk 0:03:01.7]}
5... Nc6 {[%clk 0:02:57]} 6. O-O {[%clk 0:03:01.9]} 6... b6 {[%clk 0:02:56.7]}
7. Ne5 {[%clk 0:03:01.8]} 7... Bb7 {[%clk 0:02:56.4]} 8. Nxc6 {[%clk 0:03:01.2]}
8... Bxc6 {[%clk 0:02:56.1]} 9. c4 {[%clk 0:03:00.6]} 9... Bd6 {[%clk
0:02:50.4]} 10. cxd5 {[%clk 0:03:00.3]} 10... exd5 {[%clk 0:02:49.9]} 11. d4
{[%clk 0:02:59.3]} 11... O-O {[%clk 0:02:46.2]} 12. dxc5 {[%clk 0:02:58.7]}
12... bxc5 {[%clk 0:02:46.2]} 13. Bf3 {[%clk 0:02:56.5]} 13... Rc8 {[%clk
0:02:27.8]} 14. Nd2 {[%clk 0:02:54.4]} 14... Nd7 {[%clk 0:02:02.2]} 15. Rc1
{[%clk 0:02:48.6]} 15... Qe7 {[%clk 0:01:26.9]} 16. g3 {[%clk 0:02:46.1]} 16...
Ne5 {[%clk 0:01:24.3]} 17. Bg2 {[%clk 0:02:45.7]} 17... Nd3 {[%clk 0:01:23]} 18.
Ba3 {[%clk 0:02:38.2]} 18... Nxc1 {[%clk 0:01:21.5]} 19. Qxc1 {[%clk 0:02:38.3]}
19... d4 {[%clk 0:01:10]} 20. Bxc6 {[%clk 0:02:33.9]} 20... Rxc6 {[%clk
0:01:09.5]} 21. exd4 {[%clk 0:02:33.2]} 21... Rfc8 {[%clk 0:01:08.4]} 22. d5
{[%clk 0:02:32.6]} 22... R6c7 {[%clk 0:01:02.4]} 23. Nc4 {[%clk 0:02:32.6]}
23... Qf6 {[%clk 0:00:49]} 24. Re1 {[%clk 0:02:27.2]} 24... h6 {[%clk
0:00:47.9]} 25. Bb2 {[%clk 0:02:23.1]} 25... Qg6 {[%clk 0:00:47.9]} 26. Nxd6
{[%clk 0:02:22.7]} 26... Qxd6 {[%clk 0:00:47.5]} 27. Be5 {[%clk 0:02:22.7]}
27... Qxd5 {[%clk 0:00:46]} 28. Bxc7 {[%clk 0:02:22.6]} 28... Rxc7 {[%clk
0:00:46.7]} 29. Re8+ {[%clk 0:02:20.8]} 29... Kh7 {[%clk 0:00:46.1]} 30. Qc2+
{[%clk 0:02:21]} 30... g6 {[%clk 0:00:45.9]} 31. Qe4 {[%clk 0:02:16.3]} 31...
Qd1+ {[%clk 0:00:41.5]} 32. Kg2 {[%clk 0:02:15.5]} 32... c4 {[%clk 0:00:41.9]}
33. Re7 {[%clk 0:02:11.3]} 33... Rxe7 {[%clk 0:00:39.9]} 34. Qxe7 {[%clk
0:02:11.4]} 34... Qd5+ {[%clk 0:00:40]} 35. f3 {[%clk 0:02:07.5]} 35... cxb3
{[%clk 0:00:39.7]} 36. axb3 {[%clk 0:02:05.4]} 36... a5 {[%clk 0:00:24.8]} 37.
Qe3 {[%clk 0:02:04.5]} 37... Kg7 {[%clk 0:00:20.2]} 38. h4 {[%clk 0:02:04.4]}
38... h5 {[%clk 0:00:19.7]} 39. Qc3+ {[%clk 0:02:02]} 39... Kh7 {[%clk
0:00:18.8]} 40. Kh3 {[%clk 0:01:55.1]} 40... Qd7+ {[%clk 0:00:18.5]} 41. g4
{[%clk 0:01:54.5]} 41... Qd5 {[%clk 0:00:17]} 42. gxh5 {[%clk 0:01:50.6]} 42...
Qxh5 {[%clk 0:00:17]} 43. Kg3 {[%clk 0:01:50.6]} 43... Qd5 {[%clk 0:00:15.6]}
44. Kg4 {[%clk 0:01:44.4]} 44... Qd7+ {[%clk 0:00:14.8]} 45. Kg3 {[%clk
0:01:41.8]} 45... Qd5 {[%clk 0:00:15]} 46. Qe3 {[%clk 0:01:36.9]} 46... Qf5
{[%clk 0:00:13]} 47. Qg5 {[%clk 0:01:33.7]} 47... Qxg5+ {[%clk 0:00:12.7]} 48.
hxg5 {[%clk 0:01:33.8]} 48... Kg7 {[%clk 0:00:13]} 49. Kf4 {[%clk 0:01:30.9]}
49... f5 {[%clk 0:00:13.4]} 50. Ke5 {[%clk 0:01:30.3]} 50... Kf7 {[%clk
0:00:13.7]} 51. Kd6 {[%clk 0:01:27.5]} 51... Ke8 {[%clk 0:00:13.1]} 52. Ke6
{[%clk 0:01:25.8]} 1-0

[Event "Late-Titled-Tuesday-Blitz-January-16-2024"]
[Site "Chess.com"]
[Date "2024.01.16"]
[Round "8"]
[White "GMCorinnaKopff"]
[Black "nfds"]
[Result "0-1"]
[WhiteElo "2331"]
[BlackElo "2490"]
[TimeControl "180+1"]
[EndTime "15:27:56 PST"]
[Termination "nfds won by checkmate"]

1. e4 {[%clk 0:03:00.9]} 1... g6 {[%clk 0:02:23.8]} 2. d4 {[%clk 0:02:59.9]}
2... Bg7 {[%clk 0:02:23.5]} 3. Nc3 {[%clk 0:02:59.4]} 3... c5 {[%clk 0:02:23.7]}
4. Be3 {[%clk 0:02:59.7]} 4... Nc6 {[%clk 0:02:18.5]} 5. Nge2 {[%clk 0:02:53.5]}
5... cxd4 {[%clk 0:02:14]} 6. Nxd4 {[%clk 0:02:54.4]} 6... Nf6 {[%clk
0:02:14.3]} 7. f3 {[%clk 0:02:53.9]} 7... O-O {[%clk 0:02:13.7]} 8. Qd2 {[%clk
0:02:53.9]} 8... d5 {[%clk 0:02:13.1]} 9. O-O-O {[%clk 0:02:52.6]} 9... dxe4
{[%clk 0:02:09.7]} 10. Qe1 {[%clk 0:02:52.5]} 10... Bd7 {[%clk 0:02:03.5]} 11.
fxe4 {[%clk 0:02:27.7]} 11... Qc7 {[%clk 0:01:50.9]} 12. Nd5 {[%clk 0:02:14.1]}
12... Qe5 {[%clk 0:01:38]} 13. Bf4 {[%clk 0:02:02.1]} 13... Qh5 {[%clk
0:01:21.4]} 14. Nxc6 {[%clk 0:01:56.5]} 14... Nxd5 {[%clk 0:01:13.4]} 15. Rxd5
{[%clk 0:01:57.4]} 15... Qg4 {[%clk 0:01:04]} 16. Nxe7+ {[%clk 0:01:54]} 16...
Kh8 {[%clk 0:01:03.9]} 17. Qg3 {[%clk 0:01:41.4]} 17... Qe6 {[%clk 0:01:02.1]}
18. Bd6 {[%clk 0:01:25.5]} 18... Rfe8 {[%clk 0:01:01.7]} 19. Bc4 {[%clk
0:01:19.8]} 19... Rxe7 {[%clk 0:00:55]} 20. Bxe7 {[%clk 0:01:20.7]} 20... Qxe7
{[%clk 0:00:53.5]} 21. Qd6 {[%clk 0:01:15.5]} 21... Qxe4 {[%clk 0:00:44.2]} 22.
Qxd7 {[%clk 0:01:03]} 22... Qxc4 {[%clk 0:00:42]} 23. Qxf7 {[%clk 0:00:48.4]}
23... Rf8 {[%clk 0:00:34]} 24. Qe6 {[%clk 0:00:41.1]} 24... Bh6+ {[%clk
0:00:26.2]} 25. Kd1 {[%clk 0:00:34.2]} 25... Qxa2 {[%clk 0:00:16.3]} 26. Re1
{[%clk 0:00:17.6]} 26... Qb1+ {[%clk 0:00:16.3]} 27. Ke2 {[%clk 0:00:16.9]}
27... Qxc2+ {[%clk 0:00:17]} 28. Rd2 {[%clk 0:00:16.5]} 28... Qxd2# {[%clk
0:00:17.6]} 0-1